Workbook

Sheet полевые раб.
B1: ИНФОРМАЦИЯ ПО ВЕРЕЩАГИНСКОМУ ГОРОДСКОМУ ОКРУГУ
A2: Полевые работы на 02.06.2022
A3: Наименование хозяйства | D3: Подкормка многолетних трав, га | E3: Подкормка озимых, га | F3: Боронование многолетних трав, га | G3: Боронование озимых, га | H3: Весновспашка,га | I3: Культивация | J3: Закрытие влаги, га | K3: Протравлено семян, т
A4: ОАО ППС "Тимирязевский"
A5: ООО "Ленинское" | D5: 20 | F5: 642 | I5: 250 | J5: 250
A6: ООО "Агросепыч" | D6: 653 | F6: 1568 | I6: 319 | J6: 296
A7: ООО АП "Соколово" | F7: 2100 | H7: 150 | I7: 70 | J7: 490
A8: ООО АФ "Галинское" | F8: 1800 | I8: 300 | J8: 700
A9: ООО "Заполье" | D9: 800 | F9: 1600 | I9: 850 | J9: 1300
A10: ООО АП "Заря Путино" | D10: 492 | E10: 379 | F10: 1765 | H10: 129 | I10: 3650 | J10: 3700 | K10: 720
A11: Итого по предприятиям: | D11: =SUM(D4:D10) -> 1965 | E11: 379 | F11: 9475 | G11: 0 | H11: 279 | I11: 5439 | J11: =SUM(J4:J10) -> 6736 | K11: =SUM(K4:K10) -> 720
A12: КФХ | F12: 1768 | H12: 1 | I12: 751 | J12: 751
A13: ВСЕГО: | D13: =D11+D12 -> 1965 | E13: =E11+E12 -> 379 | F13: 11243 | G13: 0 | H13: 280 | I13: 6190 | J13: 7487 | K13: 720
A14: На 02.06.2021г. | D14: 3389 | E14: 393 | F14: 10335 | G14: 467 | H14: 1 | I14: 10771 | J14: 11745 | K14: 1050

Sheet сев
A2: Наименование хозяйства | D2: Яровой сев (зерновые и зернобобовые), га | S2: Зрновые и зернобобовые, всего, га | V2: Яровой сев (прочие), га | AE2: Яровой сев, всего, га | AG2: %
D3: пшеница | G3: ячмень | J3: овес | M3: зернобобовые (горох,вика) | P3: прочие | S3: План | T3: Факт | U3: % | V3: рапс | Y3: кукуруза | AB3: однолетние | AC3: мн. травы б/п | AD3: картофель | AE3: План | AF3: Факт
D4: план | E4: факт | F4: % | G4: план | H4: факт | I4: % | J4: план | K4: факт | L4: % | M4: план | N4: факт | O4: % | P4: план | Q4: факт | R4: % | V4: план | W4: факт | X4: % | Y4: план | Z4: факт | AA4: %
A5: ОАО ППС "Тимирязевский" | F5: =E5/D5*100 ->  | I5: =H5/G5*100 ->  | L5: =K5/J5*100 ->  | O5: =N5/M5*100 ->  | R5: =Q5/P5*100 ->  | U5: =T5/S5*100 ->  | X5: =W5/V5*100 ->  | AA5: =Z5/Y5*100 ->  | AG5: =AF5/AE5*100 -> 
A6: ООО "Ленинское" | D6: 55 | E6: 80 | F6: =E6/D6*100 -> 145.4545455 | G6: 53 | H6: 90 | I6: =H6/G6*100 -> 169.8113208 | J6: 65 | K6: 80 | L6: =K6/J6*100 -> 123.0769231 | O6: =N6/M6*100 ->  | R6: =Q6/P6*100 ->  | S6: 173 | T6: 250 | U6: 144.5086705 | AE6: 173 | AF6: 250 | AG6: 144.5086705
A7: ООО "Агросепыч" | G7: 293 | H7: 136 | I7: 46.41638225 | J7: 212 | K7: 106 | L7: 50 | S7: 505 | T7: 242 | U7: 47.92079208 | AE7: 505 | AF7: 242 | AG7: 47.92079208
A8: ООО АП "Соколово" | J8: 200 | K8: 98 | L8: 49 | S8: 200 | T8: =E8+H8+K8+N8+Q8 -> 98 | U8: 49 | AB8: 270 | AE8: 790 | AF8: =T8+W8+Z8+AB8+AC8 -> 368 | AG8: 46.58227848
A9: ООО АФ "Галинское" | D9: 110 | E9: 80 | F9: 72.72727273 | G9: 40 | I9: 0 | J9: 250 | K9: 100 | L9: 40 | S9: 400 | T9: 180 | U9: 45 | AB9: 120 | AE9: 700 | AF9: 300 | AG9: 42.85714286
A10: ООО "Заполье" | D10: 100 | F10: 0 | G10: 200 | H10: 125 | I10: 62.5 | J10: 200 | K10: 200 | L10: 100 | S10: 500 | T10: 325 | U10: 65 | AB10: 450 | AE10: 1300 | AF10: 775 | AG10: 59.61538462
A11: ООО АП "Заря Путино" | D11: 566 | E11: 566 | F11: 100 | G11: 1259 | H11: 877 | I11: 69.65845909 | J11: 525 | K11: 191 | L11: 36.38095238 | S11: 2350 | T11: 1634 | U11: 69.53191489 | V11: 652 | W11: 652 | X11: 100 | Y11: 536 | AA11: =Z11/Y11*100 -> 0 | AB11: 1360 | AE11: 5642 | AF11: 3646 | AG11: 64.6224743
A12: Итого по предприятиям: | D12: =SUM(D5:D11) -> 831 | E12: =SUM(E5:E11) -> 726 | F12: 87.36462094 | G12: 1845 | H12: 1228 | I12: 66.55826558 | J12: 1452 | K12: 775 | L12: 53.37465565 | M12: 0 | N12: 0 | P12: 0 | Q12: 0 | S12: 4128 | T12: 2729 | U12: 66.10949612 | V12: 652 | W12: 652 | X12: 100 | Y12: 536 | Z12: 0 | AA12: 0 | AB12: 2200 | AC12: 0 | AD12: 0 | AE12: 9110 | AF12: =T12+W12+Z12+AB12+AC12+AD12 -> 5581 | AG12: 61.26234907
A13: КФХ | D13: 326 | E13: 273 | F13: 83.74233129 | G13: 144 | H13: 142 | I13: 98.61111111 | J13: 235 | K13: 265 | L13: 112.7659574 | S13: 705 | T13: 680 | U13: 96.45390071 | AC13: 70 | AD13: 1 | AE13: 706 | AF13: 751 | AG13: 106.3739377
A14: ВСЕГО: | D14: =D12+D13 -> 1157 | E14: =E12+E13 -> 999 | F14: 86.34399309 | G14: 1989 | H14: 1370 | I14: 68.87883358 | J14: 1687 | K14: 1040 | L14: 61.64789567 | M14: 0 | N14: 0 | P14: 0 | Q14: 0 | S14: 4833 | T14: 3409 | U14: 70.53589903 | V14: 652 | W14: 652 | X14: 100 | Y14: 536 | Z14: 0 | AA14: 0 | AB14: 2200 | AC14: 70 | AD14: 1 | AE14: 9816 | AF14: 6332 | AG14: 64.50692747
A15: На 02.06.2021г. | E15: 1524 | H15: 2693 | K15: 1455 | T15: 5672 | W15: 652 | Z15: 750 | AB15: 4463 | AC15: 450 | AD15: 1 | AE15: 12257 | AF15: 11987 | AG15: 97.8
